fUSD/lending_fUSD_20250804
["ID","MTS","AMOUNT","RATE_DAILY","PERIOD"]
[377272574,1754311839467,-150.0,0.0004494,30]
[377272576,1754311839476,-150.0,0.0004494,30]
[377272578,1754311839486,-150.0,0.0004494,30]
[377272580,1754311839496,-150.0,0.0004494,30]
[377272582,1754311839505,-150.0,0.0004494,30]
[377272584,1754311839516,-150.0,0.0004494,30]
[377272585,1754311839526,-150.0,0.0004494,30]
[377272586,1754311839535,-537.09,0.0004494,30]
[377272587,1754311839548,-537.09,0.0004494,30]
[377272588,1754311839558,-150.0,0.0004494,30]
[377272589,1754311839567,-537.09,0.0004494,30]
[377272590,1754311839577,-150.0,0.0004494,30]
[377272591,1754311839587,-537.09,0.0004494,30]
[377272592,1754311839596,-150.0,0.0004494,30]
[377272593,1754311839605,-150.0,0.0004494,30]
[377272594,1754311839615,-166.51,0.0004494,30]
[377272595,1754311839625,-466.93,0.0004494,30]
[377272597,1754311839635,-462.23,0.0004494,30]
[377272598,1754311839644,-437.21,0.0004494,30]
[377272600,1754311839654,-172.88,0.0004494,30]
[377272603,1754311839664,-150.0,0.0004494,30]
[377272605,1754311839674,-359.08,0.0004494,30]
[377272607,1754311839684,-172.88,0.0004494,30]
[377272609,1754311839694,-150.0,0.0004494,30]
[377272610,1754311839703,-172.88,0.0004494,30]
[377272613,1754311839713,-150.0,0.0004494,30]
[377272614,1754311839722,-172.88,0.0004494,30]
[377272616,1754311839731,-150.0,0.0004494,30]
[377272618,1754311839741,-172.88,0.0004494,30]
[377272621,1754311839750,-150.0,0.0004494,30]
[377272623,1754311839760,-179.77,0.0004494,30]
[377272625,1754311839771,-172.88,0.0004494,30]
[377272627,1754311839781,-439.43,0.0004494,30]
[377272628,1754311839790,-172.88,0.0004494,30]
[377272631,1754311839800,-172.88,0.0004494,30]
[377272633,1754311839810,-359.08,0.0004494,30]
[377272635,1754311839819,-172.88,0.0004494,30]
[377272637,1754311839829,-359.08,0.0004494,30]
[377272639,1754311839839,-172.88,0.0004494,30]
[377272641,1754311839849,-172.88,0.0004494,30]
[377272642,1754311839864,-359.08,0.0004494,30]
[377272644,1754311839874,-359.08,0.0004494,30]
[377272646,1754311839884,-359.08,0.0004494,30]
[377272648,1754311839894,-359.08,0.0004494,30]
[377272650,1754311839904,-359.08,0.0004494,30]
[377272653,1754311839914,-359.08,0.0004494,30]
[377272654,1754311839923,-359.08,0.0004494,30]
[377272657,1754311839933,-535.98,0.0004494,30]
[377272658,1754311839944,-172.66,0.0004494,30]
[377272660,1754311839954,-628.06011456,0.00044973,10]
[377272662,1754311839963,-150.0,0.0004498,30]
[377272665,1754311839974,-616.2,0.00044981,120]
[377272666,1754311839984,-151.0,0.00045,120]
[377272669,1754311839994,-152.0,0.00045,120]
[377272671,1754311840003,-503.58483606,0.00045021,10]
[377272673,1754311840014,-156.78,0.00045143,120]
[377272675,1754311840023,-5003.3323187,0.00045269,15]
[377272677,1754311840033,-2500.0,0.0004569,2]
[377272679,1754311840043,-5003.3323187,0.00045973,15]
[377272681,1754311840053,-996.388,0.00046,120]
[377272683,1754311840062,-1000.0,0.00046027,120]
[377272685,1754311840071,-840.0,0.00046027,120]
[377272687,1754311840081,-152.0,0.000461,120]
[377272689,1754311840090,-151.0,0.000463,120]
[377272690,1754311840100,-250.0,0.000463,2]
[377272693,1754311840109,-1007.4088885,0.00046368,120]
[377272695,1754311840119,-721.76784992,0.00046374,120]
[377272696,1754311840132,-2053.44451453,0.00046394,120]
[377272698,1754311840141,-721.76784992,0.00046396,120]
[377272701,1754311840151,-591.66841502,0.00046402,120]
[377272704,1754311840161,-1243.62118375,0.00046406,120]
[377272706,1754311840171,-2053.44451453,0.00046407,120]
[377272708,1754311840180,-591.66841502,0.00046407,120]
[377272711,1754311840190,-2053.44451453,0.00046409,120]
[377272713,1754311840200,-1007.4088885,0.00046418,120]
[377272715,1754311840209,-721.76784992,0.00046429,120]
[377272717,1754311840219,-1243.62118375,0.00046431,120]
[377272718,1754311840228,-1243.62118375,0.00046436,120]
[377272720,1754311840237,-591.66841502,0.00046436,120]
[377272722,1754311840249,-591.66841502,0.00046439,120]
[377272725,1754311840260,-1007.4088885,0.00046444,120]
[377272727,1754311840269,-721.76784992,0.00046444,120]
[377272728,1754311840278,-591.66841502,0.00046445,120]
[377272731,1754311840288,-1243.62118375,0.0004645,120]
[377272733,1754311840298,-2053.44451453,0.0004645,120]
[377272735,1754311840307,-1243.62118375,0.00046452,120]
[377272737,1754311840317,-2053.44451453,0.00046457,120]
[377272738,1754311840326,-1007.4088885,0.00046473,120]
[377272740,1754311840335,-1007.4088885,0.00046475,120]
[377272743,1754311840345,-721.76784992,0.00046486,120]
[377272745,1754311840355,-3360.0,0.00046501,2]
[377272747,1754311840364,-956.505,0.00046501,2]
[377272748,1754311840373,-1251.0,0.00046501,2]
[377272750,1754311840383,-809.0,0.00046501,2]
[377272752,1754311840392,-1310.353,0.00046501,2]
[377272755,1754311840402,-1019.068,0.00046501,2]
[377272756,1754311840411,-663.587,0.00046501,2]
[377272759,1754311840421,-567.64,0.00046501,2]
[377272761,1754311840430,-2115.239,0.00046501,2]
[377272763,1754311840440,-1651.0,0.00046501,2]
[377272765,1754311840449,-6070.0,0.00046501,2]
[377272767,1754311840458,-864.0,0.00046501,2]
[377272769,1754311840467,-21419.0,0.00046501,2]
[377272770,1754311840476,-4137.0,0.00046501,2]
[377272772,1754311840486,-1080.92716924,0.0004657,3]
[377272774,1754311840495,-5003.3323187,0.00046677,15]
[377272776,1754311840505,-210.0,0.00046711,120]
[377272779,1754311840514,-616.2,0.00046783,120]
[377272781,1754311840526,-5800.0,0.0004679,14]
[377272783,1754311840535,-5800.0,0.00046798,14]
[377272785,1754311840544,-2000.0,0.000468,2]
[377272786,1754311840553,-5800.0,0.00046807,14]
[377272788,1754311840562,-5800.0,0.00046815,14]
[377272790,1754311840572,-206.5595,0.000469,120]
[377272792,1754311840581,-1000.0,0.0004697,3]
[377272795,1754311840590,-300.0,0.00047162,120]
[377272796,1754311840600,-1600.0,0.00047171,120]
[377272799,1754311840609,-152.0,0.000472,120]
[377272801,1754311840618,-5003.3323187,0.00047381,15]
[377272803,1754311840629,-151.0,0.000475,120]
[377272805,1754311840638,-505.0,0.00047701,10]
[377272807,1754311840647,-2900.76,0.0004789,7]
[377272809,1754311840657,-1000.0,0.00047915,2]
[377272811,1754311840666,-436.38,0.00048,2]
[377272813,1754311840675,-308.545148,0.00048,32]
[377272815,1754311840684,-5003.3323187,0.00048084,15]
[377272817,1754311840693,-152.0,0.000482,120]
[377272819,1754311840703,-505.0,0.0004826,10]
[377272821,1754311840712,-150.0,0.000485,2]
[377272823,1754311840721,-3107.2661,0.00048512,2]
[377272825,1754311840731,-616.2,0.00048585,120]
[377272827,1754311840740,-557.90608555,0.00048666,2]
[377272829,1754311840749,-171.72473142,0.00048774,120]
[377272831,1754311840758,-5003.3323187,0.00048788,15]
[377272833,1754311840769,-151.0,0.000488,120]
[377272835,1754311840778,-173.23818763,0.000488,28]
[377272837,1754311840787,-505.0,0.00048819,10]
[377272839,1754311840797,-711.0567757,0.00048831,2]
[377272841,1754311840806,-16397.2361178,0.0004889,4]
[377272843,1754311840816,-3577.98098928,0.00048897,15]
[377272845,1754311840825,-1000.0,0.00048899,2]
[377272847,1754311840835,-50000.0,0.000489,2]
[377272849,1754311840844,-864.20746585,0.00048997,2]
[377272851,1754311840858,-1500.0,0.00049,2]
[377272853,1754311840867,-1500.0,0.00049,2]
[377272855,1754311840877,-1500.0,0.00049,2]
[377272857,1754311840887,-1500.0,0.00049,2]
[377272859,1754311840897,-1500.0,0.00049,2]
[377272861,1754311840907,-1500.0,0.00049,2]
[377272863,1754311840916,-1500.0,0.00049,2]
[377272865,1754311840925,-1500.0,0.00049,2]
[377272867,1754311840938,-1500.0,0.00049,2]
[377272869,1754311840948,-1500.0,0.00049,2]
[377272871,1754311840957,-853.65,0.00049,2]
[377272873,1754311840966,-171.72473142,0.00049077,120]
[377272875,1754311840976,-3577.98098922,0.0004912,15]
[377272877,1754311840986,-1017.35815601,0.00049162,2]
[377272879,1754311840995,-152.0,0.00049189,3]
[377272881,1754311841005,-16397.2361178,0.00049195,4]
[377272883,1754311841014,-600.0,0.00049205,18]
[377272885,1754311841023,-600.0,0.00049205,18]
[377272887,1754311841034,-604.61022774,0.00049205,18]
[377272889,1754311841043,-600.0,0.00049205,18]
[377272891,1754311841052,-600.0,0.00049205,18]
[377272893,1754311841062,-600.0,0.00049205,18]
[377272895,1754311841072,-600.0,0.00049205,18]
[377272897,1754311841081,-600.0,0.00049205,18]
[377272899,1754311841091,-600.0,0.00049205,18]
[377272901,1754311841100,-600.0,0.00049205,18]
[377272903,1754311841110,-600.0,0.00049205,18]
[377272905,1754311841119,-600.0,0.00049205,18]
[377272907,1754311841130,-600.0,0.00049205,18]
[377272909,1754311841140,-600.0,0.00049205,38]
[377272911,1754311841149,-600.0,0.00049205,18]
[377272913,1754311841159,-600.0,0.00049205,18]
[377272915,1754311841168,-600.0,0.00049205,18]
[377272917,1754311841177,-600.0,0.00049205,18]
[377272919,1754311841186,-600.0,0.00049205,18]
[377272921,1754311841196,-600.0,0.00049205,18]
[377272924,1754311841206,-600.0,0.00049205,18]
[377272925,1754311841215,-600.0,0.00049205,18]
[377272927,1754311841225,-600.0,0.00049205,18]
[377272929,1754311841233,-600.0,0.00049205,18]
[377272931,1754311841242,-600.0,0.00049205,38]
[377272934,1754311841252,-2614.51239126,0.00049215,21]
[377272936,1754311841262,-501.90794635,0.0004927,3]
[377272938,1754311841271,-177.53,0.00049279,14]
[377272940,1754311841281,-152.0,0.000493,120]
[377272942,1754311841291,-300.0,0.00049315,30]
[377272944,1754311841300,-310.0,0.00049315,30]
[377272945,1754311841310,-200.0,0.00049315,120]
[377272948,1754311841323,-1170.50884616,0.00049328,2]
[377272950,1754311841337,-3577.98098922,0.00049342,15]
[377272952,1754311841347,-505.0,0.00049378,10]
[377272954,1754311841356,-171.72473142,0.00049379,120]
[377272956,1754311841365,-361.14823033,0.00049401,15]
[377272958,1754311841374,-16397.2361178,0.00049491,4]
[377272959,1754311841384,-5003.3323187,0.00049492,15]
[377272962,1754311841395,-1323.65953631,0.00049493,2]
[377272964,1754311841404,-3360.0,0.00049501,2]
[377272965,1754311841413,-955.0,0.00049501,2]
[377272967,1754311841423,-1251.0,0.00049501,2]
[377272970,1754311841433,-809.0,0.00049501,2]
[377272972,1754311841442,-1292.0,0.00049501,2]
[377272974,1754311841452,-958.0,0.00049501,2]
[377272975,1754311841461,-597.0,0.00049501,2]
[377272977,1754311841471,-564.0,0.00049501,2]
[377272979,1754311841480,-2023.0,0.00049501,2]
[377272982,1754311841490,-1651.0,0.00049501,2]
[377272983,1754311841499,-6070.0,0.00049501,2]
[377272986,1754311841509,-3792.239,0.00049501,2]
[377272987,1754311841519,-3577.98098922,0.00049565,15]
[377272989,1754311841528,-1716.0,0.000496,2]
[377272991,1754311841537,-1000.0,0.000496,120]
[377272994,1754311841548,-150.0,0.00049603,7]
[377272995,1754311841558,-1476.81022646,0.00049659,2]
[377272998,1754311841568,-173.23818761,0.00049671,28]
[377272999,1754311841577,-171.72473142,0.00049682,120]
[377273001,1754311841587,-300.0,0.000497,18]
[377273003,1754311841596,-177.51828733,0.0004975,14]
[377273005,1754311841606,-180.0,0.00049757,40]
[377273007,1754311841615,-3577.98098922,0.00049787,15]
[377273009,1754311841626,-1179.29,0.000498,120]
[377273011,1754311841636,-1179.29,0.000498,120]
[377273013,1754311841645,-1179.29,0.000498,120]
[377273015,1754311841655,-1179.29,0.000498,120]
[377273017,1754311841664,-1179.29,0.000498,120]
[377273019,1754311841673,-1179.29,0.000498,120]
[377273021,1754311841683,-1179.29,0.000498,120]
[377273023,1754311841693,-1179.29,0.000498,120]
[377273025,1754311841702,-1179.29,0.000498,120]
[377273027,1754311841712,-1179.29,0.000498,120]
[377273029,1754311841721,-1927.78,0.000498,120]
[377273031,1754311841731,-650.36,0.000498,120]
[377273034,1754311841741,-600.0,0.000498,18]
[377273036,1754311841750,-1629.96091661,0.00049824,2]
[377273037,1754311841759,-150.0,0.00049852,7]
[377273039,1754311841769,-501.0987251,0.00049873,10]
[377273041,1754311841778,-501.25218818,0.00049873,10]
[377273043,1754311841787,-500.43177966,0.00049873,10]
[377273046,1754311841797,-150.0,0.00049889,7]
[377273048,1754311841807,-49191.7083533,0.0004989,4]
[377273050,1754311841816,-16397.2361178,0.00049893,4]
[377273052,1754311841825,-157.8422223,0.000499,26]
[377273053,1754311841835,-301.63674388,0.000499,120]
[377273055,1754311841845,-5000.0,0.000499,120]
[377273056,1754311841861,-88888.0,0.000499,120]
[377273057,1754311841871,-3010.52659085,0.000499,120]
[377273058,1754311841883,-336.1393,0.000499,120]
[377273059,1754311841893,-1000.0,0.000499,18]
[377273060,1754311841902,-3662.01390335,0.000499,2]
[377273061,1754311841913,-150.0,0.00049932,7]
[377273062,1754311841922,-505.0,0.00049937,12]
[377273063,1754311841932,-303.42652598,0.00049963,120]
[377273065,1754311841943,-311.0,0.0004997,120]
[377273066,1754311841952,-1000.0,0.0004997,3]
[377273068,1754311841961,-500.0,0.00049973,10]
[377273070,1754311841972,-503.70761084,0.00049973,10]
[377273072,1754311841981,-2349.89,0.0004998,7]
[377273074,1754311841990,-311.0,0.0004998,120]
[377273076,1754311842000,-151.18,0.0004998,120]
[377273078,1754311842009,-249.70833394,0.0004998,7]
[377273080,1754311842019,-171.72473142,0.00049985,120]
[377273082,1754311842029,-150.0,0.00049985,7]
[377273084,1754311842039,-150.12675388,0.00049985,7]
[377273086,1754311842048,-255914.38952386,0.00049987,120]
[377273088,1754311842058,-311.0,0.0004999,120]
[377273090,1754311842067,-262355.777884,0.0004999,4]
[377273092,1754311842077,-284691.4735,0.0004999,4]
[377273094,1754311842086,-1783.11160676,0.0004999,2]
[377273096,1754311842095,-151.18,0.0004999,120]
[377273098,1754311842105,-151.18,0.0004999,120]
[377273100,1754311842114,-151.18,0.0004999,120]
[377273102,1754311842125,-151.18,0.0004999,120]
[377273104,1754311842135,-151.18,0.0004999,120]
[377273106,1754311842145,-151.18,0.0004999,120]
[377273108,1754311842154,-150.0,0.00049992,7]
[377273110,1754311842164,-150.0,0.00049997,30]
[377273112,1754311842174,-2358.58,0.00049999,120]
[377273115,1754311842183,-198.92533609,0.00049999,120]
[377273117,1754311842193,-500.0,0.00049999,120]
[377273119,1754311842202,-247.48860417,0.00049999,120]
[377273120,1754311842211,-353.210339,0.00049999,120]
[377273122,1754311842221,-500.0,0.00049999,120]
[377273124,1754311842230,-500.0,0.00049999,120]
[377273127,1754311842240,-446.86985083,0.00049999,120]
[377273129,1754311842249,-500.0,0.00049999,120]
[377273130,1754311842259,-500.0,0.00049999,120]
[377273133,1754311842268,-500.0,0.00049999,120]
[377273135,1754311842278,-500.0,0.00049999,120]
[377273136,1754311842288,-1454.66053297,0.00049999,120]
[377273139,1754311842297,-196.4,0.00049999,120]
[377273140,1754311842306,-50000.0,0.0005,55]
[377273143,1754311842316,-1000.0,0.0005,120]
[377273145,1754311842325,-323.74,0.0005,120]
[377273147,1754311842334,-500.0,0.0005,120]
[377273149,1754311842343,-1000000.0,0.0005,120]
[377273151,1754311842353,-150.93,0.0005,120]
[377273153,1754311842362,-151.0,0.0005,120]
[377273155,1754311842371,-758288.0,0.0005,120]
[377273157,1754311842381,-3553.05,0.0005,60]
[377273159,1754311842390,-254.45390561,0.0005,18]
[377273161,1754311842399,-200.0,0.0005,36]
[377273163,1754311842408,-150.0,0.00050004,7]
[377273165,1754311842418,-150.0,0.00050008,7]
[377273167,1754311842427,-3577.98098922,0.0005001,15]
[377273169,1754311842437,-150.0,0.00050029,7]
[377273171,1754311842447,-361.1482303,0.0005008,15]
[377273173,1754311842457,-150.0,0.00050155,7]
[377273175,1754311842466,-247.04881102,0.00050181,120]
[377273177,1754311842476,-500.0,0.00050181,120]
[377273179,1754311842485,-5003.3323187,0.00050196,15]
[377273181,1754311842494,-3577.98098922,0.00050232,15]
[377273183,1754311842503,-150.0,0.00050244,7]
[377273185,1754311842512,-150.0,0.00050248,7]
[377273187,1754311842524,-171.72473142,0.00050287,120]
[377273189,1754311842533,-150.0,0.00050336,7]
[377273191,1754311842543,-616.2,0.00050386,120]
[377273193,1754311842553,-177.53,0.0005039,14]
[377273195,1754311842562,-1309.15,0.000504,7]
[377273197,1754311842573,-152.0,0.000504,120]
[377273199,1754311842582,-150.0,0.00050404,7]
[377273201,1754311842592,-150.0,0.00050431,7]
[377273203,1754311842601,-3577.98098922,0.00050455,15]
[377273205,1754311842613,-505.0,0.00050496,20]
[377273207,1754311842622,-1000.0,0.00050521,10]
[377273209,1754311842632,-173.23818761,0.00050543,28]
[377273211,1754311842642,-150.0,0.00050581,7]
[377273239,1754311842909,-171.72473142,0.0005059,120]
[377273242,1754311842920,-150.0,0.00050615,7]
[377273244,1754311842929,-150.0,0.00050639,7]
[377273246,1754311842939,-150.0,0.00050673,3]
[377273248,1754311842948,-500.0,0.00050673,10]
[377273250,1754311842958,-150.0,0.00050673,10]
[377273252,1754311842968,-3577.98098922,0.00050677,15]
[377273254,1754311842978,-249.70833394,0.0005068,7]
[377273256,1754311842987,-151.18,0.0005068,120]
[377273258,1754311842997,-151.18,0.0005068,120]
[377273260,1754311843007,-151.18,0.0005068,120]
[377273262,1754311843017,-151.18,0.0005068,120]
[377273264,1754311843026,-302.270127,0.00050682,120]
[377273266,1754311843036,-154.05,0.00050685,2]
[377273268,1754311843046,-150.0,0.00050689,20]
[377273270,1754311843056,-134391.57070026,0.0005069,120]
[377273273,1754311843073,-598.0938,0.0005069,120]
[377273276,1754311843098,-278.71859887,0.0005069,120]
[377273278,1754311843110,-1340.45955201,0.0005069,120]
[377273282,1754311843122,-10796.70657992,0.0005069,120]
[377273295,1754311843224,-1367.99321348,0.0005069,120]
[377273297,1754311843235,-102649.19420989,0.0005069,120]
[377273303,1754311843268,-870.71595472,0.0005069,120]
[377273305,1754311843280,-2356.70560517,0.0005069,120]
[377273307,1754311843292,-14201.41175369,0.0005069,120]
[377273518,1754311845303,-151.0,0.00037702,2]
[377273521,1754311845318,-336.44852051,0.00045743,2]
[377273524,1754311845339,-120.77160339,0.00045743,2]
[377273527,1754311845353,-4137.0,0.00049501,2]
[377273529,1754311845366,-282.51293064,0.0005069,120]
[377273561,1754311845658,-444.380019,0.0005069,120]
[377273838,1754311848491,-165.39,0.00044118,30]
[377273841,1754311848501,-537.09,0.00044118,30]
[377273843,1754311848510,-152.96,0.00047155,120]
[377273845,1754311848520,-888.0,0.00047177,15]
[377273847,1754311848530,-1776.0,0.00049417,15]
[377273849,1754311848539,-150.0,0.00049757,7]
[377273851,1754311848549,-150.0,0.00049765,7]
[377273853,1754311848559,-150.0,0.00049967,7]
[377273855,1754311848568,-888.0,0.00050001,3]
[377273857,1754311848580,-150.0,0.00050094,7]
[377273859,1754311848800,-150.0,0.00050542,7]
[377273861,1754311848810,-150.0,0.00050616,7]
[377273863,1754311848820,-5128.20471286,0.0005069,120]
[377273866,1754311848842,-854.55749319,0.0005069,120]
[377273869,1754311848862,-359.08,0.00044118,30]
[377273871,1754311848872,-5565.3200002,0.0005069,120]
[377273873,1754311848885,-12198.75975945,0.0005069,120]
[377273876,1754311848897,-251.31436167,0.0005069,120]
[377273878,1754311848909,-1723.82789889,0.0005069,120]
[377273882,1754311848942,-273.01963876,0.0005069,120]
[377273886,1754311848963,-1288.95483898,0.0005069,120]
[377273888,1754311848976,-1081.23781539,0.0005069,120]
[377273895,1754311849038,-5713.1999972,0.0005069,120]
[377274046,1754311850605,-172.88,0.00044118,30]
[377274048,1754311850616,-150.0,0.00044118,30]
[377274050,1754311850626,-888.0,0.00050001,3]
[377274052,1754311850637,-42840.97076625,0.0005069,120]
[377274060,1754311850699,-1223.50000006,0.0005069,120]
[377274616,1754312088943,400.0,0.00035,2]
[377274638,1754312247442,339.0,0.00030137,120]
[377274642,1754312358471,153.81,0.00013699,2]
[377274643,1754312358672,153.81,0.00026027,2]
[377274647,1754312362492,5000.0,0.00035,2]
[377274648,1754312385692,5000.0,0.00035,2]
[377274649,1754312394988,190.9,0.00035,2]
[377274652,1754312415182,5000.0,0.00035,2]
[377274653,1754312423402,1000.0,0.00035,6]
[377274654,1754312426059,5000.0,0.00035,2]
[377274663,1754312437667,5000.0,0.00035,2]
[377274664,1754312446246,5000.0,0.00035,2]
[377274665,1754312458080,5000.0,0.00035,2]
[377274666,1754312477936,6699.57039808,0.00035,2]
[377274691,1754312661035,182.0,0.00034,2]
[377274692,1754312691828,5000.0,0.00035001,2]
[377274695,1754312716053,6894.0,0.00035001,2]
[377274700,1754312723216,160.59505698,0.00034,5]
[377274710,1754312894885,448.40440521,0.00035,2]
[377274712,1754312971224,256.72721634,0.00035001,2]
[377274739,1754313032522,-172.81,0.00035921,2]
[377274740,1754313032532,-523.8,0.00036921,7]
[377274741,1754313032541,-259.78862207,0.00037476,120]
[377274742,1754313032550,-256.87954426,0.00037476,120]
[377274743,1754313032560,-153.81,0.00038356,2]
[377274744,1754313032569,-523.8,0.00038472,15]
[377274745,1754313032579,-523.8,0.00040024,15]
[377274746,1754313032589,-150.0,0.000403,12]
[377274747,1754313032598,-200.0,0.00041096,20]
[377274748,1754313032608,-133.23632854,0.00041096,20]
[377274752,1754313037579,-66.76367146,0.00041096,20]
[377274753,1754313037589,-200.0,0.00041096,20]
[377274754,1754313037599,-200.0,0.00041096,20]
[377274755,1754313037608,-393.0,0.00041575,120]
[377274756,1754313037618,-303.33632859,0.00041576,120]
[377274757,1754313037630,-220.46367141,0.00041576,120]
[377274758,1754313037639,-218.41019809,0.0004158,120]
[377274759,1754313037649,-532.57329146,0.00041599,10]
[377274760,1754313037671,-317.07931179,0.00041599,10]
[377274761,1754313037684,-1650.34739675,0.00041599,10]
[377274762,1754313037693,-200.0,0.00041898,30]
[377274763,1754313037703,-550.0,0.00041899,5]
[377274764,1754313037712,-343.5805925,0.000419,45]
[377274765,1754313037722,-2566.84,0.00041902,2]
[377274766,1754313037731,-7914.8920809,0.00041902,2]
[377274780,1754313039548,-2085.0979191,0.00041902,2]
[377274781,1754313039558,-1200.93218071,0.00041902,2]
[377274782,1754313039761,-6290.55472126,0.00041902,2]
[377274783,1754313039819,-2089.4,0.00041902,2]
[377274784,1754313039878,-460.90309803,0.00041902,2]
[377274785,1754313039888,-299.99,0.00041902,120]
[377274786,1754313039898,-999.99,0.00041902,2]
[377274787,1754313039908,-1993.58869723,0.00041902,2]
[377274795,1754313045542,-1261.92220592,0.00041902,2]
[377274796,1754313045599,-6744.47909685,0.00041902,2]
[377274797,1754313045608,-150.99,0.00041902,30]
[377274798,1754313045617,-150.99,0.00041902,2]
[377274799,1754313045627,-600.0,0.00042211,7]
[377274800,1754313045636,-600.0,0.00042211,7]
[377274801,1754313045646,-600.0,0.00042211,7]
[377274802,1754313045655,-240.64,0.00042211,7]
[377274803,1754313045664,-343.58059235,0.00042245,46]
[377274804,1754313045674,-343.58059235,0.0004259,46]
[377274805,1754313045684,-511.425,0.00042662,65]
[377274806,1754313045693,-1602.04271845,0.00042662,117]
[377274807,1754313045705,-367.63067478,0.00042662,117]
[377274808,1754313045729,-500.0,0.00042662,117]
[377274811,1754313046103,-1426.360158,0.00042662,117]
[377274812,1754313046167,-1931.0835318,0.00042662,117]
[377274813,1754313046177,-451.54,0.00042662,120]
[377274814,1754313046187,-343.58059235,0.00042934,47]
[377274815,1754313046196,-152.0,0.00043063,3]
[377274816,1754313046205,-457.2201239,0.00043115,2]
[377274817,1754313046214,-343.58059235,0.00043279,48]
[377274818,1754313046224,-343.58059235,0.00043624,48]
[377274819,1754313046233,-343.58059235,0.00043969,49]
[377274820,1754313046243,-343.58059235,0.00044314,50]
[377274821,1754313046253,-451.54,0.00044393,120]
[377274822,1754313046262,-343.58059235,0.00044659,50]
[377274823,1754313046271,-152.0,0.00044958,4]
[377274824,1754313046280,-152.0,0.00045,120]
[377274825,1754313046290,-153.0,0.00045,120]
[377274826,1754313046300,-1000.0,0.00045,120]
[377274827,1754313046310,-201.0,0.00045,120]
[377274828,1754313046319,-343.58059235,0.00045003,51]
[377274829,1754313046328,-175.0,0.00045162,7]
[377274830,1754313046338,-1000.0,0.00045204,2]
[377274831,1754313046348,-195.4,0.00045214,2]
[377274832,1754313046361,-156.78,0.00045299,120]
[377274833,1754313046371,-250.0,0.00045332,120]
[377274834,1754313046384,-809.0,0.00045346,2]
[377274835,1754313046394,-597.0,0.00045346,2]
[377274836,1754313046404,-2023.0,0.00045346,2]
[377274837,1754313046414,-564.0,0.00045346,2]
[377274838,1754313046423,-1651.0,0.00045346,2]
[377274839,1754313046433,-770.899,0.00045346,2]
[377274840,1754313046443,-388.901,0.00045346,2]
[377274841,1754313046453,-343.58059235,0.00045348,52]
[377274842,1754313046462,-640.0,0.00045376,120]
[377274843,1754313046471,-692.41,0.00045438,2]
[377274844,1754313046481,-343.58059235,0.00045693,53]
[377274845,1754313046490,-259.78862207,0.00046,120]
[377274846,1754313046499,-256.87954426,0.00046,120]
[377274847,1754313046508,-343.58059235,0.00046038,53]
[377274848,1754313046518,-391.84054793,0.00046088,60]
[377274849,1754313046527,-152.0,0.000461,120]
[377274850,1754313046537,-451.54,0.00046123,120]
[377274851,1754313046546,-153.0,0.000463,120]
[377274852,1754313046556,-171.22,0.00046352,3]
[377274853,1754313046565,-343.58059235,0.00046383,54]
[377274854,1754313046574,-150.0,0.00046501,2]
[377274855,1754313046584,-2508.177,0.00046501,2]
[377274856,1754313046593,-1251.0,0.00046501,2]